[Event "*** Titled Tuesday Blitz"]
[Site "Chess.com"]
[Date "2020.04.28"]
[Round "8"]
[White "praveenb2002"]
[Black "davidkalashian"]
[Result "1-0"]
[WhiteElo "2730"]
[BlackElo "2568"]
[TimeControl "180+1"]
[EndTime "11:34:39 PDT"]
[Termination "praveenb2002 won by resignation"]

1. d4 {[%clk 0:03:00.9]} 1... Nf6 {[%clk 0:02:59.2]} 2. c4 {[%clk 0:03:01.8]}
2... g6 {[%clk 0:02:59.2]} 3. Nc3 {[%clk 0:02:59.9]} 3... Bg7 {[%clk 0:02:59.6]}
4. g3 {[%clk 0:02:59.1]} 4... d6 {[%clk 0:02:59.3]} 5. Bg2 {[%clk 0:02:59.2]}
5... O-O {[%clk 0:02:59.2]} 6. Nf3 {[%clk 0:02:59.3]} 6... c6 {[%clk 0:02:58.3]}
7. O-O {[%clk 0:02:59.6]} 7... Qa5 {[%clk 0:02:58.7]} 8. e4 {[%clk 0:02:57.1]}
8... Qh5 {[%clk 0:02:58.3]} 9. e5 {[%clk 0:02:53.8]} 9... dxe5 {[%clk
0:02:48.8]} 10. Nxe5 {[%clk 0:02:54.7]} 10... Nbd7 {[%clk 0:02:45.7]} 11. Qxh5
{[%clk 0:02:46.6]} 11... Nxh5 {[%clk 0:02:46.6]} 12. f4 {[%clk 0:02:47.1]} 12...
Nhf6 {[%clk 0:02:42]} 13. b3 {[%clk 0:02:39.3]} 13... c5 {[%clk 0:02:23.4]} 14.
Be3 {[%clk 0:02:38]} 14... Ng4 {[%clk 0:02:09]} 15. Nxg4 {[%clk 0:02:30.3]}
15... cxd4 {[%clk 0:02:07.5]} 16. Nd5 {[%clk 0:02:29.7]} 16... dxe3 {[%clk
0:02:03.9]} 17. Nxe7+ {[%clk 0:02:30.2]} 17... Kh8 {[%clk 0:02:03.7]} 18. Rae1
{[%clk 0:02:31.1]} 18... Nc5 {[%clk 0:01:56.4]} 19. Nxe3 {[%clk 0:02:26.1]}
19... Re8 {[%clk 0:01:24.1]} 20. N3d5 {[%clk 0:02:24.6]} 20... Bd4+ {[%clk
0:01:21.5]} 21. Kh1 {[%clk 0:02:24.4]} 21... Nd3 {[%clk 0:01:19.8]} 22. Re2
{[%clk 0:02:15.4]} 22... Bc5 {[%clk 0:00:40.6]} 23. Nc7 {[%clk 0:02:10.4]} 23...
Bg4 {[%clk 0:00:34.2]} 24. Nxg6+ {[%clk 0:01:42]} 24... hxg6 {[%clk 0:00:31.7]}
25. Rxe8+ {[%clk 0:01:42.6]} 25... Rxe8 {[%clk 0:00:31.2]} 26. Nxe8 {[%clk
0:01:43.2]} 26... Nf2+ {[%clk 0:00:30.9]} 27. Rxf2 {[%clk 0:01:43.7]} 27... Bxf2
{[%clk 0:00:31.2]} 28. Bxb7 {[%clk 0:01:44.4]} 28... Bc5 {[%clk 0:00:27.4]} 29.
Nf6 {[%clk 0:01:43.5]} 29... Bf5 {[%clk 0:00:25]} 30. Be4 {[%clk 0:01:35.2]}
30... Kg7 {[%clk 0:00:18.3]} 31. Bxf5 {[%clk 0:01:35]} 31... Kxf6 {[%clk
0:00:18]} 32. Be4 {[%clk 0:01:34.8]} 32... a5 {[%clk 0:00:16.5]} 33. Kg2 {[%clk
0:01:35]} 33... g5 {[%clk 0:00:17.1]} 34. fxg5+ {[%clk 0:01:32.8]} 34... Kxg5
{[%clk 0:00:15.2]} 35. h4+ {[%clk 0:01:32.9]} 35... Kf6 {[%clk 0:00:12.8]} 36.
Kf3 {[%clk 0:01:32.7]} 36... Ke5 {[%clk 0:00:13.7]} 37. h5 {[%clk 0:01:28.9]}
37... Kd4 {[%clk 0:00:14.6]} 38. h6 {[%clk 0:01:28]} 38... Kc3 {[%clk
0:00:15.5]} 39. Bd5 {[%clk 0:01:23.9]} 39... Bd4 {[%clk 0:00:16.4]} 40. Bxf7
{[%clk 0:01:23.5]} 40... Kb2 {[%clk 0:00:17.3]} 41. h7 {[%clk 0:01:19.6]} 41...
Kxa2 {[%clk 0:00:16.2]} 42. c5 {[%clk 0:01:20.1]} 1-0

[Event "*** Titled Tuesday Blitz"]
[Site "Chess.com"]
[Date "2020.04.28"]
[Round "8"]
[White "Colombiano07"]
[Black "WiktoriaPOL"]
[Result "1-0"]
[WhiteElo "2210"]
[BlackElo "2028"]
[TimeControl "180+1"]
[EndTime "11:34:40 PDT"]
[Termination "Colombiano07 won by resignation"]

1. d4 {[%clk 0:02:58]} 1... Nf6 {[%clk 0:02:59.5]} 2. Nf3 {[%clk 0:02:56.3]}
2... g6 {[%clk 0:02:59.1]} 3. Bf4 {[%clk 0:02:55.6]} 3... Bg7 {[%clk 0:02:55.3]}
4. e3 {[%clk 0:02:55.4]} 4... O-O {[%clk 0:02:54.3]} 5. h3 {[%clk 0:02:55.7]}
5... d6 {[%clk 0:02:52.4]} 6. Bh2 {[%clk 0:02:55.5]} 6... c5 {[%clk 0:02:40.8]}
7. c3 {[%clk 0:02:54.6]} 7... Qb6 {[%clk 0:02:35.1]} 8. Qb3 {[%clk 0:02:53.9]}
8... Nc6 {[%clk 0:02:30.5]} 9. Nbd2 {[%clk 0:02:52.9]} 9... Be6 {[%clk
0:02:24.1]} 10. Bc4 {[%clk 0:02:50.3]} 10... Na5 {[%clk 0:02:18.2]} 11. Qxb6
{[%clk 0:02:49.4]} 11... axb6 {[%clk 0:02:16.8]} 12. Bxe6 {[%clk 0:02:49.6]}
12... fxe6 {[%clk 0:02:13.8]} 13. Ng5 {[%clk 0:02:49]} 13... e5 {[%clk
0:01:49.1]} 14. Ne6 {[%clk 0:02:34.7]} 14... Rfc8 {[%clk 0:01:40]} 15. Nxg7
{[%clk 0:02:33.1]} 15... Kxg7 {[%clk 0:01:39.6]} 16. dxe5 {[%clk 0:02:33.2]}
16... dxe5 {[%clk 0:01:37.8]} 17. Bxe5 {[%clk 0:02:34.1]} 17... c4 {[%clk
0:01:34.1]} 18. Ke2 {[%clk 0:02:29.6]} 18... Kf7 {[%clk 0:01:28.3]} 19. Bxf6
{[%clk 0:02:28.3]} 19... exf6 {[%clk 0:01:27]} 20. Rhd1 {[%clk 0:02:27.5]} 20...
Rd8 {[%clk 0:01:25.8]} 21. Ne4 {[%clk 0:02:25.4]} 21... Ke6 {[%clk 0:01:24.6]}
22. Rd4 {[%clk 0:02:19.9]} 22... Rxd4 {[%clk 0:01:18.9]} 23. exd4 {[%clk
0:02:20.8]} 23... Nb3 {[%clk 0:01:15.8]} 24. Rd1 {[%clk 0:01:29.8]} 24... Rxa2
{[%clk 0:01:12.9]} 25. d5+ {[%clk 0:01:30.7]} 25... Ke5 {[%clk 0:00:51.3]} 26.
Ke3 {[%clk 0:01:27.6]} 26... g5 {[%clk 0:00:37.5]} 27. g3 {[%clk 0:01:27.2]}
27... Ra1 {[%clk 0:00:22.4]} 28. f4+ {[%clk 0:01:25.3]} 28... gxf4+ {[%clk
0:00:21.8]} 29. gxf4+ {[%clk 0:01:26.2]} 29... Kf5 {[%clk 0:00:21.5]} 30. Nd6+
{[%clk 0:01:23.6]} 30... Kg6 {[%clk 0:00:20.8]} 31. Rxa1 {[%clk 0:01:19.4]}
31... Nxa1 {[%clk 0:00:20.1]} 32. Nxb7 {[%clk 0:01:20.3]} 32... Kf7 {[%clk
0:00:18.5]} 33. Nd6+ {[%clk 0:01:17.7]} 33... Ke7 {[%clk 0:00:18.1]} 34. Nxc4
{[%clk 0:01:18.6]} 34... Nc2+ {[%clk 0:00:15.2]} 35. Ke4 {[%clk 0:01:17.6]}
35... b5 {[%clk 0:00:15.2]} 36. Ne3 {[%clk 0:01:12.7]} 36... Nxe3 {[%clk
0:00:13.5]} 37. Kxe3 {[%clk 0:01:12.6]} 37... Kd6 {[%clk 0:00:13.7]} 38. Kd4
{[%clk 0:01:13]} 38... f5 {[%clk 0:00:14.1]} 39. b3 {[%clk 0:01:13.3]} 39... h6
{[%clk 0:00:13.4]} 40. c4 {[%clk 0:01:13.7]} 40... h5 {[%clk 0:00:13.9]} 41. c5+
{[%clk 0:01:13.6]} 41... Kd7 {[%clk 0:00:13.2]} 42. b4 {[%clk 0:01:14.5]} 1-0

[Event "*** Titled Tuesday Blitz"]
[Site "Chess.com"]
[Date "2020.04.28"]
[Round "8"]
[White "IMTominho"]
[Black "Tayson_7"]
[Result "1-0"]
[WhiteElo "2822"]
[BlackElo "2652"]
[TimeControl "180+1"]
[EndTime "11:34:41 PDT"]
[Termination "IMTominho won by resignation"]

1. d4 {[%clk 0:02:20.6]} 1... Nf6 {[%clk 0:02:58.6]} 2. Bg5 {[%clk 0:02:19.9]}
2... c5 {[%clk 0:02:54.6]} 3. d5 {[%clk 0:02:19.5]} 3... Qb6 {[%clk 0:02:54.4]}
4. Bc1 {[%clk 0:02:13.8]} 4... g6 {[%clk 0:02:42.8]} 5. Nc3 {[%clk 0:02:12.9]}
5... Bg7 {[%clk 0:02:42.4]} 6. Nf3 {[%clk 0:02:13.4]} 6... O-O {[%clk
0:02:36.7]} 7. e4 {[%clk 0:02:06.5]} 7... d6 {[%clk 0:02:37]} 8. Be2 {[%clk
0:01:56.9]} 8... e6 {[%clk 0:02:33.6]} 9. O-O {[%clk 0:01:40]} 9... exd5 {[%clk
0:02:32.4]} 10. exd5 {[%clk 0:01:39]} 10... Nbd7 {[%clk 0:02:29.2]} 11. a4
{[%clk 0:01:36.5]} 11... a6 {[%clk 0:02:24.6]} 12. a5 {[%clk 0:01:32.9]} 12...
Qc7 {[%clk 0:02:22.7]} 13. Bf4 {[%clk 0:01:18.2]} 13... b5 {[%clk 0:02:19.4]}
14. axb6 {[%clk 0:01:17]} 14... Nxb6 {[%clk 0:02:19.1]} 15. Ng5 {[%clk
0:01:04.5]} 15... Re8 {[%clk 0:02:01.5]} 16. Bf3 {[%clk 0:01:01.9]} 16... Bf5
{[%clk 0:02:00.7]} 17. g4 {[%clk 0:00:52.3]} 17... Bd7 {[%clk 0:01:59.6]} 18. h3
{[%clk 0:00:52.1]} 18... Nc4 {[%clk 0:01:57]} 19. b3 {[%clk 0:00:48.6]} 19...
Ne5 {[%clk 0:01:56.9]} 20. Bg2 {[%clk 0:00:48]} 20... a5 {[%clk 0:01:42.8]} 21.
Ra2 {[%clk 0:00:41.3]} 21... c4 {[%clk 0:01:42.4]} 22. Nce4 {[%clk 0:00:38.4]}
22... Nxe4 {[%clk 0:01:36.5]} 23. Nxe4 {[%clk 0:00:38]} 23... f5 {[%clk
0:01:33.4]} 24. gxf5 {[%clk 0:00:34.5]} 24... Bxf5 {[%clk 0:01:34.3]} 25. Ng5
{[%clk 0:00:34.7]} 25... cxb3 {[%clk 0:01:20.1]} 26. cxb3 {[%clk 0:00:35.6]}
26... Nd3 {[%clk 0:01:20.7]} 27. Bg3 {[%clk 0:00:32.2]} 27... Nb4 {[%clk
0:01:17.8]} 28. Rd2 {[%clk 0:00:29.2]} 28... Bc3 {[%clk 0:01:15.4]} 29. h4
{[%clk 0:00:17.1]} 29... Bxd2 {[%clk 0:01:13.1]} 30. Qxd2 {[%clk 0:00:18]} 30...
Qc2 {[%clk 0:01:13.5]} 31. Qd4 {[%clk 0:00:17.1]} 31... Qc5 {[%clk 0:01:04.1]}
32. Qf6 {[%clk 0:00:15.2]} 32... Nxd5 {[%clk 0:00:58.7]} 33. Qf7+ {[%clk
0:00:14.5]} 1-0

[Event "*** Titled Tuesday Blitz"]
[Site "Chess.com"]
[Date "2020.04.28"]
[Round "8"]
[White "AcsinteMatei"]
[Black "Noam_Vitenberg"]
[Result "1-0"]
[WhiteElo "2313"]
[BlackElo "2489"]
[TimeControl "180+1"]
[EndTime "11:34:46 PDT"]
[Termination "AcsinteMatei won by resignation"]

1. d4 {[%clk 0:03:00.9]} 1... d5 {[%clk 0:02:43.2]} 2. Bf4 {[%clk 0:02:58.4]}
2... Nf6 {[%clk 0:02:42.3]} 3. e3 {[%clk 0:02:58.4]} 3... c5 {[%clk 0:02:42.2]}
4. c3 {[%clk 0:02:57]} 4... Nc6 {[%clk 0:02:41.8]} 5. Nd2 {[%clk 0:02:54.9]}
5... Bf5 {[%clk 0:02:41.4]} 6. Ngf3 {[%clk 0:02:53.3]} 6... e6 {[%clk
0:02:40.5]} 7. Bb5 {[%clk 0:02:49.1]} 7... Nd7 {[%clk 0:02:33.8]} 8. Qa4 {[%clk
0:02:44.5]} 8... Qb6 {[%clk 0:02:29.5]} 9. c4 {[%clk 0:01:47.1]} 9... a6 {[%clk
0:02:11.3]} 10. Bxc6 {[%clk 0:01:36.1]} 10... Qxc6 {[%clk 0:02:06.6]} 11. Qxc6
{[%clk 0:01:31.3]} 11... bxc6 {[%clk 0:02:07.5]} 12. O-O {[%clk 0:01:30.2]}
12... Be7 {[%clk 0:02:06.2]} 13. Rfc1 {[%clk 0:01:29.8]} 13... O-O {[%clk
0:02:03.1]} 14. Nb3 {[%clk 0:01:24.3]} 14... Rac8 {[%clk 0:01:50.1]} 15. Ne5
{[%clk 0:01:06.1]} 15... Nxe5 {[%clk 0:01:41.3]} 16. Bxe5 {[%clk 0:01:07]} 16...
cxd4 {[%clk 0:01:40.9]} 17. Nxd4 {[%clk 0:01:06.4]} 17... Bd3 {[%clk 0:01:38.8]}
18. cxd5 {[%clk 0:01:06.3]} 18... cxd5 {[%clk 0:01:39.7]} 19. Nc6 {[%clk
0:01:06.9]} 19... Bh4 {[%clk 0:01:14.1]} 20. g3 {[%clk 0:00:59.8]} 20... Bg5
{[%clk 0:01:06.1]} 21. f4 {[%clk 0:00:58]} 21... Bb5 {[%clk 0:00:59.8]} 22. Bd6
{[%clk 0:00:46.9]} 22... Rfd8 {[%clk 0:00:46.9]} 23. Nxd8 {[%clk 0:00:44.7]}
23... Rxd8 {[%clk 0:00:26]} 24. Bc7 {[%clk 0:00:44.8]} 24... Bc4 {[%clk
0:00:17.8]} 25. Bxd8 {[%clk 0:00:41.5]} 25... Bxd8 {[%clk 0:00:17.5]} 26. b3
{[%clk 0:00:42]} 26... Bb6 {[%clk 0:00:10.8]} 27. bxc4 {[%clk 0:00:41.1]} 27...
Bxe3+ {[%clk 0:00:11.7]} 28. Kg2 {[%clk 0:00:41.4]} 1-0

[Event "*** Titled Tuesday Blitz"]
[Site "Chess.com"]
[Date "2020.04.28"]
[Round "8"]
[White "Akhayan"]
[Black "axvesik"]
[Result "0-1"]
[WhiteElo "2302"]
[BlackElo "2461"]
[TimeControl "180+1"]
[EndTime "11:34:46 PDT"]
[Termination "axvesik won by resignation"]

1. d4 {[%clk 0:03:00.9]} 1... Nf6 {[%clk 0:02:56]} 2. Nf3 {[%clk 0:03:01]} 2...
e6 {[%clk 0:02:56.9]} 3. g3 {[%clk 0:03:01.2]} 3... c5 {[%clk 0:02:56.6]} 4. Bg2
{[%clk 0:03:01.3]} 4... cxd4 {[%clk 0:02:57.2]} 5. Nxd4 {[%clk 0:03:01.5]} 5...
d5 {[%clk 0:02:58.1]} 6. O-O {[%clk 0:03:01.3]} 6... e5 {[%clk 0:02:58.7]} 7.
Nb3 {[%clk 0:03:00.5]} 7... Nc6 {[%clk 0:02:59.4]} 8. c4 {[%clk 0:03:00]} 8...
dxc4 {[%clk 0:02:56.1]} 9. Qxd8+ {[%clk 0:02:58.2]} 9... Kxd8 {[%clk 0:02:56.2]}
10. N3d2 {[%clk 0:02:54.1]} 10... Be6 {[%clk 0:02:55.5]} 11. Nc3 {[%clk
0:02:39.2]} 11... Rc8 {[%clk 0:02:44.5]} 12. Nde4 {[%clk 0:02:38.6]} 12... Nxe4
{[%clk 0:02:43]} 13. Nxe4 {[%clk 0:02:38.7]} 13... Be7 {[%clk 0:02:38.8]} 14.
Ng5 {[%clk 0:02:26]} 14... Bxg5 {[%clk 0:02:36.2]} 15. Bxg5+ {[%clk 0:02:26]}
15... f6 {[%clk 0:02:37.1]} 16. Be3 {[%clk 0:02:25.4]} 16... Kc7 {[%clk
0:02:36]} 17. Rac1 {[%clk 0:02:10]} 17... Rhd8 {[%clk 0:02:28.5]} 18. Bxc6
{[%clk 0:01:49.9]} 18... Kxc6 {[%clk 0:02:23.6]} 19. b3 {[%clk 0:01:49.2]} 19...
b5 {[%clk 0:02:23]} 20. a4 {[%clk 0:01:39.6]} 20... a6 {[%clk 0:02:21.6]} 21.
axb5+ {[%clk 0:01:39.6]} 21... axb5 {[%clk 0:02:21.5]} 22. bxc4 {[%clk
0:01:34.7]} 22... Bxc4 {[%clk 0:02:19.9]} 23. Rc2 {[%clk 0:01:34.4]} 23... Ra8
{[%clk 0:02:10.8]} 24. Rb1 {[%clk 0:01:29.8]} 24... Ra3 {[%clk 0:01:57.6]} 25.
h4 {[%clk 0:01:15.9]} 25... Rda8 {[%clk 0:01:50.7]} 26. Kg2 {[%clk 0:01:10.4]}
26... Ra2 {[%clk 0:01:47.5]} 27. Rbb2 {[%clk 0:01:09.7]} 27... Rxb2 {[%clk
0:01:36.9]} 28. Rxb2 {[%clk 0:01:09.7]} 28... Ra2 {[%clk 0:01:36.8]} 29. Rxa2
{[%clk 0:01:08.2]} 29... Bxa2 {[%clk 0:01:37.1]} 30. Bd2 {[%clk 0:01:05.2]}
30... Kc5 {[%clk 0:01:36.3]} 31. g4 {[%clk 0:01:03.7]} 31... b4 {[%clk
0:01:35.6]} 32. f4 {[%clk 0:01:00.3]} 32... exf4 {[%clk 0:01:32.1]} 33. Bxf4
{[%clk 0:00:49]} 33... Kc4 {[%clk 0:01:30.9]} 34. Bc1 {[%clk 0:00:39.9]} 34...
Kc3 {[%clk 0:01:30.2]} 35. Kf3 {[%clk 0:00:36.1]} 35... b3 {[%clk 0:01:21.2]}
36. e4 {[%clk 0:00:30.4]} 36... b2 {[%clk 0:01:21.1]} 37. Bxb2+ {[%clk
0:00:30.3]} 37... Kxb2 {[%clk 0:01:21.2]} 38. e5 {[%clk 0:00:30.2]} 38... fxe5
{[%clk 0:01:20.9]} 39. Ke4 {[%clk 0:00:30.3]} 39... Be6 {[%clk 0:01:17]} 40. g5
{[%clk 0:00:29.3]} 40... Kc3 {[%clk 0:01:12.6]} 41. Kxe5 {[%clk 0:00:29.2]}
41... Bg4 {[%clk 0:01:12.8]} 42. Kd6 {[%clk 0:00:26]} 42... Kd4 {[%clk
0:01:12.7]} 43. Ke7 {[%clk 0:00:26.1]} 43... Ke5 {[%clk 0:01:11.5]} 44. Kf7
{[%clk 0:00:26.3]} 44... g6 {[%clk 0:01:12]} 45. Kg7 {[%clk 0:00:26.3]} 45...
Bh5 {[%clk 0:01:12.6]} 46. Kxh7 {[%clk 0:00:25.5]} 46... Kf4 {[%clk 0:01:13.3]}
47. Kg7 {[%clk 0:00:25.8]} 47... Kg4 {[%clk 0:01:13.9]} 48. Kf6 {[%clk
0:00:24.6]} 48... Kxh4 {[%clk 0:01:14.8]} 49. Ke5 {[%clk 0:00:23.1]} 49... Kg4
{[%clk 0:01:15.2]} 50. Ke4 {[%clk 0:00:22.5]} 50... Kxg5 {[%clk 0:01:15.6]} 0-1

[Event "*** Titled Tuesday Blitz"]
[Site "Chess.com"]
[Date "2020.04.28"]
[Round "8"]
[White "fridaywins"]
[Black "BakaPG"]
[Result "0-1"]
[WhiteElo "2242"]
[BlackElo "2669"]
[TimeControl "180+1"]
[EndTime "11:34:47 PDT"]
[Termination "BakaPG won by checkmate"]

1. e4 {[%clk 0:03:00.9]} 1... e6 {[%clk 0:02:59.6]} 2. d4 {[%clk 0:03:00.3]}
2... d5 {[%clk 0:02:59]} 3. Nc3 {[%clk 0:03:00.9]} 3... Nf6 {[%clk 0:02:58.6]}
4. e5 {[%clk 0:03:00.7]} 4... Nfd7 {[%clk 0:02:58.8]} 5. f4 {[%clk 0:03:01.3]}
5... c5 {[%clk 0:02:58.9]} 6. Nf3 {[%clk 0:03:01.9]} 6... Nc6 {[%clk 0:02:59.5]}
7. Be3 {[%clk 0:03:01.7]} 7... cxd4 {[%clk 0:03:00]} 8. Nxd4 {[%clk 0:03:01.4]}
8... Bc5 {[%clk 0:03:00.6]} 9. Qd2 {[%clk 0:03:01.4]} 9... O-O {[%clk
0:02:59.9]} 10. Be2 {[%clk 0:03:01.2]} 10... a6 {[%clk 0:03:00.5]} 11. O-O
{[%clk 0:03:01]} 11... Nxd4 {[%clk 0:02:51.4]} 12. Bxd4 {[%clk 0:03:00.8]} 12...
b5 {[%clk 0:02:51.2]} 13. Bxc5 {[%clk 0:02:52.4]} 13... Nxc5 {[%clk 0:02:51]}
14. Qd4 {[%clk 0:02:52.3]} 14... Qb6 {[%clk 0:02:34.6]} 15. Kh1 {[%clk
0:02:30.8]} 15... b4 {[%clk 0:02:32.6]} 16. Nd1 {[%clk 0:02:29.2]} 16... a5
{[%clk 0:02:28.7]} 17. Ne3 {[%clk 0:02:27.4]} 17... Ba6 {[%clk 0:02:28]} 18.
Bxa6 {[%clk 0:02:25.3]} 18... Rxa6 {[%clk 0:02:26.6]} 19. f5 {[%clk 0:02:26.2]}
19... Ne4 {[%clk 0:02:24.6]} 20. Qd3 {[%clk 0:02:17.3]} 20... Rd8 {[%clk
0:01:59.8]} 21. Rad1 {[%clk 0:02:01.1]} 21... Raa8 {[%clk 0:01:54.4]} 22. f6
{[%clk 0:02:00.6]} 22... gxf6 {[%clk 0:01:50.9]} 23. exf6 {[%clk 0:01:58.7]}
23... Kh8 {[%clk 0:01:50.4]} 24. Ng4 {[%clk 0:01:56.8]} 24... Qc7 {[%clk
0:01:31.9]} 25. Rde1 {[%clk 0:01:01.5]} 25... Rg8 {[%clk 0:01:26.6]} 26. Rxe4
{[%clk 0:01:01.5]} 26... dxe4 {[%clk 0:01:25.6]} 27. Qxe4 {[%clk 0:01:02.4]}
27... Raf8 {[%clk 0:01:14.3]} 28. h3 {[%clk 0:01:02.1]} 28... Rg5 {[%clk
0:00:56.4]} 29. Qe3 {[%clk 0:00:58.6]} 29... Qc5 {[%clk 0:00:55.4]} 30. Qd3
{[%clk 0:00:50.6]} 30... Qd5 {[%clk 0:00:47.1]} 31. Qe3 {[%clk 0:00:45.2]} 31...
Rc8 {[%clk 0:00:39.6]} 32. c3 {[%clk 0:00:31.4]} 32... h5 {[%clk 0:00:30.3]} 33.
Nh6 {[%clk 0:00:31]} 33... Qxg2# {[%clk 0:00:28.8]} 0-1

[Event "*** Titled Tuesday Blitz"]
[Site "Chess.com"]
[Date "2020.04.28"]
[Round "8"]
[White "gurelediz"]
[Black "zabivol_mc"]
[Result "1-0"]
[WhiteElo "2598"]
[BlackElo "2454"]
[TimeControl "180+1"]
[EndTime "11:34:52 PDT"]
[Termination "gurelediz won by checkmate"]

1. e4 {[%clk 0:03:00.9]} 1... e6 {[%clk 0:03:00.4]} 2. d4 {[%clk 0:02:56.8]}
2... d5 {[%clk 0:03:00.6]} 3. Nd2 {[%clk 0:02:57.5]} 3... Be7 {[%clk 0:02:59.9]}
4. Bd3 {[%clk 0:02:55.7]} 4... c5 {[%clk 0:02:57.5]} 5. dxc5 {[%clk 0:02:50.7]}
5... Nf6 {[%clk 0:02:56.6]} 6. Qe2 {[%clk 0:02:46.5]} 6... a5 {[%clk 0:02:52]}
7. Ngf3 {[%clk 0:02:44.3]} 7... O-O {[%clk 0:02:49.6]} 8. O-O {[%clk 0:02:43.3]}
8... Na6 {[%clk 0:02:49.6]} 9. e5 {[%clk 0:02:37.7]} 9... Nd7 {[%clk 0:02:49.2]}
10. c4 {[%clk 0:02:36]} 10... Ndxc5 {[%clk 0:02:34.5]} 11. Bb1 {[%clk
0:02:34.7]} 11... dxc4 {[%clk 0:02:30.4]} 12. Nxc4 {[%clk 0:02:33]} 12... Bd7
{[%clk 0:02:30.8]} 13. Rd1 {[%clk 0:02:30.3]} 13... Qc7 {[%clk 0:02:26.5]} 14.
Bg5 {[%clk 0:02:19]} 14... Bxg5 {[%clk 0:02:13.4]} 15. Bxh7+ {[%clk 0:01:59.3]}
15... Kxh7 {[%clk 0:01:52.2]} 16. Nxg5+ {[%clk 0:01:58.4]} 16... Kg6 {[%clk
0:01:40.5]} 17. Qg4 {[%clk 0:01:57.3]} 17... f5 {[%clk 0:01:40.5]} 18. Qg3
{[%clk 0:01:40.9]} 18... Kh6 {[%clk 0:01:06.6]} 19. Qh4+ {[%clk 0:01:30.3]}
19... Kg6 {[%clk 0:01:06.5]} 20. Qh7+ {[%clk 0:01:11.2]} 20... Kxg5 {[%clk
0:01:07]} 21. h4+ {[%clk 0:00:47.9]} 21... Kf4 {[%clk 0:01:01.9]} 22. Qxg7
{[%clk 0:00:35.2]} 22... Rg8 {[%clk 0:00:18.3]} 23. Rd4+ {[%clk 0:00:27.4]}
23... Ne4 {[%clk 0:00:16.5]} 24. g3+ {[%clk 0:00:27.1]} 24... Kf3 {[%clk
0:00:15.4]} 25. Rd3+ {[%clk 0:00:26.8]} 25... Ke2 {[%clk 0:00:12.9]} 26. Re3#
{[%clk 0:00:27.4]} 1-0

[Event "*** Titled Tuesday Blitz"]
[Site "Chess.com"]
[Date "2020.04.28"]
[Round "8"]
[White "Tiqr777"]
[Black "Sashadav97"]
[Result "0-1"]
[WhiteElo "2598"]
[BlackElo "2747"]
[TimeControl "180+1"]
[EndTime "11:34:55 PDT"]
[Termination "Sashadav97 won by checkmate"]

1. c4 {[%clk 0:03:00.9]} 1... e6 {[%clk 0:02:59.5]} 2. Nc3 {[%clk 0:03:01.4]}
2... d5 {[%clk 0:02:59.7]} 3. d4 {[%clk 0:03:01.8]} 3... Nf6 {[%clk 0:02:59.5]}
4. Bg5 {[%clk 0:03:01.8]} 4... dxc4 {[%clk 0:02:59.6]} 5. e3 {[%clk 0:02:58.1]}
5... a6 {[%clk 0:02:59.2]} 6. Bxc4 {[%clk 0:02:56.4]} 6... c5 {[%clk 0:02:56.8]}
7. dxc5 {[%clk 0:02:55.1]} 7... Bxc5 {[%clk 0:02:49]} 8. Qxd8+ {[%clk
0:02:49.6]} 8... Kxd8 {[%clk 0:02:49.9]} 9. O-O-O+ {[%clk 0:02:48.6]} 9... Nd7
{[%clk 0:02:46.2]} 10. Nf3 {[%clk 0:02:45.3]} 10... b5 {[%clk 0:02:22.2]} 11.
Bb3 {[%clk 0:02:41.2]} 11... Ke8 {[%clk 0:02:06.4]} 12. e4 {[%clk 0:02:20.9]}
12... b4 {[%clk 0:01:52.7]} 13. Na4 {[%clk 0:02:17.2]} 13... Nxe4 {[%clk
0:01:50.4]} 14. Nxc5 {[%clk 0:02:16.6]} 14... Nexc5 {[%clk 0:01:38.1]} 15. Bc4
{[%clk 0:02:16.2]} 15... f6 {[%clk 0:01:25.7]} 16. Be3 {[%clk 0:02:13]} 16...
Bb7 {[%clk 0:01:20.3]} 17. Rd6 {[%clk 0:02:09.3]} 17... Rc8 {[%clk 0:01:10.5]}
18. Kb1 {[%clk 0:02:02.4]} 18... Rc6 {[%clk 0:01:02.2]} 19. Rhd1 {[%clk
0:02:00.4]} 19... Rxd6 {[%clk 0:01:01.9]} 20. Rxd6 {[%clk 0:01:59.1]} 20... Ke7
{[%clk 0:01:01.8]} 21. Bxc5 {[%clk 0:01:42]} 21... Nxc5 {[%clk 0:01:00.6]} 22.
Rb6 {[%clk 0:01:42.4]} 22... Be4+ {[%clk 0:00:53]} 23. Kc1 {[%clk 0:01:36]}
23... Rc8 {[%clk 0:00:36.4]} 24. b3 {[%clk 0:01:31]} 24... Bd5 {[%clk
0:00:29.2]} 25. Nd2 {[%clk 0:00:52.2]} 25... Nd3+ {[%clk 0:00:20.4]} 26. Kb1
{[%clk 0:00:47.7]} 26... Nxf2 {[%clk 0:00:20.5]} 27. Bxd5 {[%clk 0:00:45.8]}
27... exd5 {[%clk 0:00:21.4]} 28. Rb7+ {[%clk 0:00:44]} 28... Kf8 {[%clk
0:00:18.6]} 29. Rxb4 {[%clk 0:00:44.3]} 29... Nd3 {[%clk 0:00:18.6]} 30. Rd4
{[%clk 0:00:38.3]} 30... Rc1# {[%clk 0:00:17.8]} 0-1